fUST/lending_fUST_20250111
["ID","MTS","AMOUNT","RATE_DAILY","PERIOD"]
[348487858,1736573433342,-812.075725,0.00021917,2]
[348487859,1736573433352,-812.075725,0.00021917,2]
[348487860,1736573433361,-812.075725,0.00021917,2]
[348487861,1736573433371,-812.075725,0.00021917,2]
[348487862,1736573433381,-812.075725,0.00021917,2]
[348487863,1736573433391,-812.075725,0.00021917,2]
[348487864,1736573433401,-501.61982539,0.00021917,3]
[348487865,1736573433411,-1186.693334,0.00021917,2]
[348487866,1736573433421,-1186.693334,0.00021917,2]
[348487867,1736573433432,-1186.693334,0.00021917,2]
[348487868,1736573433442,-1186.693334,0.00021917,2]
[348487869,1736573433451,-1186.693334,0.00021917,2]
[348487870,1736573433462,-1186.693334,0.00021917,2]
[348487871,1736573433471,-1186.693334,0.00021917,2]
[348487872,1736573433482,-1186.693334,0.00021917,2]
[348487873,1736573433491,-1186.693334,0.00021917,2]
[348487874,1736573433501,-1186.693334,0.00021917,2]
[348487875,1736573433511,-1186.693334,0.00021917,2]
[348487876,1736573433521,-1186.693334,0.00021917,2]
[348487877,1736573433531,-1186.693334,0.00021917,2]
[348487878,1736573433541,-1186.693334,0.00021917,2]
[348487879,1736573433551,-1186.693334,0.00021917,2]
[348487880,1736573433561,-1186.693334,0.00021917,2]
[348487881,1736573433571,-1186.693334,0.00021917,2]
[348487882,1736573433582,-1186.693334,0.00021917,2]
[348487883,1736573433592,-1186.693334,0.00021917,2]
[348487884,1736573433601,-1186.693338,0.00021917,2]
[348487885,1736573433610,-305.422824,0.00021917,2]
[348487886,1736573433620,-507.64799622,0.00021917,3]
[348487887,1736573433631,-305.422824,0.00021917,2]
[348487888,1736573433641,-305.422824,0.00021917,2]
[348487889,1736573433651,-500.0,0.00021917,3]
[348487890,1736573433660,-305.422824,0.00021917,2]
[348487891,1736573433670,-502.55351524,0.00021917,3]
[348487892,1736573433680,-305.422824,0.00021917,2]
[348487893,1736573433692,-305.422824,0.00021917,2]
[348487894,1736573433702,-508.18536611,0.00021917,3]
[348487895,1736573433712,-500.0,0.00021917,3]
[348487896,1736573433723,-504.61259123,0.00021917,3]
[348487897,1736573433732,-500.0,0.00021917,3]
[348487898,1736573433742,-500.0,0.00021917,3]
[348487899,1736573433752,-509.4491268,0.00021917,3]
[348487900,1736573433762,-501.19044874,0.00021917,3]
[348487901,1736573433771,-501.67365616,0.00021917,3]
[348487902,1736573433781,-502.68532334,0.00021917,3]
[348487903,1736573433791,-502.96671062,0.00021917,3]
[348487904,1736573433801,-502.42523481,0.00021917,3]
[348487905,1736573433810,-503.83980231,0.00021917,3]
[348487906,1736573433820,-151.0,0.00021917,2]
[348487907,1736573433830,-151.0,0.00021917,2]
[348487908,1736573433840,-500.0,0.00021917,3]
[348487909,1736573433849,-502.52923895,0.00021917,3]
[348487910,1736573433859,-151.0,0.00021917,2]
[348487911,1736573433869,-503.09918288,0.00021917,3]
[348487912,1736573433879,-150.79733782,0.00021917,3]
[348487913,1736573433888,-502.59819443,0.00021917,3]
[348487914,1736573433898,-151.0,0.00021917,2]
[348487915,1736573433908,-151.0,0.00021917,2]
[348487916,1736573433918,-151.0,0.00021917,2]
[348487917,1736573433928,-502.40594034,0.00021917,3]
[348487918,1736573433938,-525.35731802,0.00021917,3]
[348487919,1736573433948,-500.98268365,0.00021917,3]
[348487920,1736573433957,-505.10212592,0.00021917,3]
[348487921,1736573433967,-305.135763,0.00021917,2]
[348487922,1736573433977,-500.0,0.00021917,3]
[348487923,1736573433988,-305.135763,0.00021917,2]
[348487924,1736573433998,-305.135763,0.00021917,2]
[348487925,1736573434008,-305.135763,0.00021917,2]
[348487926,1736573434018,-305.135763,0.00021917,2]
[348487927,1736573434028,-305.135763,0.00021917,2]
[348487928,1736573434038,-305.135763,0.00021917,2]
[348487929,1736573434047,-305.135763,0.00021917,2]
[348487930,1736573434058,-305.135763,0.00021917,2]
[348487931,1736573434068,-305.135763,0.00021917,2]
[348487932,1736573434079,-305.135763,0.00021917,2]
[348487933,1736573434090,-500.0,0.00021917,3]
[348487934,1736573434103,-305.135763,0.00021917,2]
[348487935,1736573434114,-305.135763,0.00021917,2]
[348487936,1736573434123,-305.135763,0.00021917,2]
[348487937,1736573434132,-305.135763,0.00021917,2]
[348487938,1736573434143,-305.135763,0.00021917,2]
[348487939,1736573434152,-502.63739952,0.00021917,3]
[348487940,1736573434163,-305.135763,0.00021917,2]
[348487941,1736573434173,-305.135763,0.00021917,2]
[348487942,1736573434183,-500.0,0.00021917,3]
[348487943,1736573434192,-305.135763,0.00021917,2]
[348487944,1736573434201,-305.135772,0.00021917,2]
[348487945,1736573434211,-500.0,0.00021917,3]
[348487946,1736573434221,-502.08061408,0.00021917,3]
[348487947,1736573434231,-500.0,0.00021917,3]
[348487948,1736573434241,-500.0,0.00021917,3]
[348487949,1736573434251,-500.67974322,0.00021917,3]
[348487950,1736573434260,-500.0,0.00021917,3]
[348487951,1736573434270,-524.26147601,0.00021917,3]
[348487952,1736573434280,-151.0,0.00021917,2]
[348487953,1736573434289,-151.0,0.00021917,2]
[348487954,1736573434299,-500.0,0.00021917,3]
[348487955,1736573434309,-248.289684,0.00021917,2]
[348487956,1736573434320,-500.0,0.00021917,3]
[348487957,1736573434330,-500.0,0.00021917,3]
[348487958,1736573434340,-483.74667149,0.00021917,3]
[348487959,1736573434350,-500.0,0.00021917,3]
[348487960,1736573434361,-500.0,0.00021917,3]
[348487961,1736573434371,-500.0,0.00021917,3]
[348487962,1736573434380,-514.04648937,0.00021917,3]
[348487963,1736573434390,-500.0,0.00021917,3]
[348487964,1736573434400,-500.0,0.00021917,3]
[348487965,1736573434410,-200.0,0.00021917,3]
[348487966,1736573434420,-499.93448225,0.00021917,3]
[348487967,1736573434430,-500.0,0.00021917,3]
[348487968,1736573434440,-505.63364429,0.00021917,3]
[348487969,1736573434449,-500.0,0.00021917,3]
[348487970,1736573434460,-503.66354493,0.00021917,3]
[348487971,1736573434469,-504.46020905,0.00021917,3]
[348487972,1736573434479,-500.0,0.00021917,3]
[348487973,1736573434488,-501.16090787,0.00021917,3]
[348487974,1736573434498,-500.0,0.00021917,3]
[348487975,1736573434507,-500.0,0.00021917,3]
[348487976,1736573434519,-500.0,0.00021917,3]
[348487977,1736573434528,-500.0,0.00021917,3]
[348487978,1736573434537,-503.29693287,0.00021917,3]
[348487979,1736573434546,-500.0,0.00021917,3]
[348487980,1736573434556,-503.74461025,0.00021917,3]
[348487981,1736573434566,-502.70070654,0.00021917,3]
[348487982,1736573434575,-500.0,0.00021917,3]
[348487983,1736573434586,-556.19758469,0.00021917,3]
[348487984,1736573434596,-500.0,0.00021917,3]
[348487985,1736573434605,-500.0,0.00021917,3]
[348487986,1736573434615,-500.0,0.00021917,3]
[348487987,1736573434625,-500.0,0.00021917,3]
[348487988,1736573434634,-500.0,0.00021917,3]
[348487989,1736573434643,-500.0,0.00021917,3]
[348487990,1736573434654,-454.8969347,0.00021917,3]
[348487991,1736573434663,-500.38349074,0.00021917,3]
[348487992,1736573434673,-500.0,0.00021917,3]
[348487993,1736573434683,-501.03098367,0.00021917,3]
[348487994,1736573434693,-500.0,0.00021917,3]
[348487995,1736573434703,-500.0,0.00021917,3]
[348487996,1736573434714,-525.16145503,0.00021917,3]
[348487997,1736573434724,-500.0,0.00021917,3]
[348487998,1736573434734,-502.25826991,0.00021917,3]
[348487999,1736573434743,-500.99127048,0.00021917,3]
[348488000,1736573434752,-500.0,0.00021917,3]
[348488001,1736573434762,-501.54888336,0.00021917,3]
[348488002,1736573434772,-151.0,0.00021917,2]
[348488003,1736573434781,-500.0,0.00021917,3]
[348488004,1736573434792,-151.0,0.00021917,2]
[348488005,1736573434802,-500.0,0.00021917,3]
[348488006,1736573434812,-153.239207,0.00021917,2]
[348488007,1736573434822,-501.77455051,0.00021917,3]
[348488008,1736573434833,-500.0,0.00021917,3]
[348488009,1736573434842,-500.0,0.00021917,3]
[348488010,1736573434852,-502.42918887,0.00021917,3]
[348488011,1736573434863,-500.0,0.00021917,3]
[348488012,1736573434872,-500.95433493,0.00021917,3]
[348488013,1736573434881,-500.79655473,0.00021917,3]
[348488014,1736573434891,-151.0,0.00021917,2]
[348488015,1736573434901,-500.0,0.00021917,3]
[348488016,1736573434911,-151.0,0.00021917,2]
[348488017,1736573434920,-151.0,0.00021917,2]
[348488018,1736573434930,-151.0,0.00021917,2]
[348488019,1736573434939,-500.0,0.00021917,3]
[348488020,1736573434950,-151.0,0.00021917,2]
[348488021,1736573434960,-151.0,0.00021917,2]
[348488022,1736573434969,-151.0,0.00021917,2]
[348488023,1736573434980,-151.0,0.00021917,2]
[348488024,1736573434990,-500.0,0.00021917,3]
[348488025,1736573434999,-151.0,0.00021917,2]
[348488026,1736573435011,-151.0,0.00021917,2]
[348488027,1736573435021,-151.0,0.00021917,2]
[348488028,1736573435032,-151.0,0.00021917,2]
[348488029,1736573435041,-151.0,0.00021917,2]
[348488030,1736573435052,-151.0,0.00021917,2]
[348488031,1736573435062,-232.423294,0.00021917,2]
[348488032,1736573435071,-153.59115,0.00021917,2]
[348488033,1736573435082,-160.500832,0.00021917,2]
[348488034,1736573435091,-500.0,0.00021917,3]
[348488035,1736573435104,-160.500832,0.00021917,2]
[348488036,1736573435114,-160.500832,0.00021917,2]
[348488037,1736573435124,-160.500832,0.00021917,2]
[348488038,1736573435134,-160.500832,0.00021917,2]
[348488039,1736573435143,-160.500832,0.00021917,2]
[348488040,1736573435153,-160.500832,0.00021917,2]
[348488041,1736573435163,-160.500832,0.00021917,2]
[348488042,1736573435175,-160.500832,0.00021917,2]
[348488043,1736573435185,-160.500832,0.00021917,2]
[348488044,1736573435194,-160.500832,0.00021917,2]
[348488045,1736573435203,-160.500832,0.00021917,2]
[348488046,1736573435213,-160.500832,0.00021917,2]
[348488047,1736573435223,-500.0,0.00021917,3]
[348488048,1736573435233,-160.500832,0.00021917,2]
[348488049,1736573435243,-502.6689319,0.00021917,3]
[348488050,1736573435253,-160.500832,0.00021917,2]
[348488051,1736573435262,-500.0,0.00021917,3]
[348488052,1736573435271,-160.500832,0.00021917,2]
[348488053,1736573435282,-160.500832,0.00021917,2]
[348488054,1736573435291,-160.500832,0.00021917,2]
[348488055,1736573435301,-160.500832,0.00021917,2]
[348488056,1736573435312,-160.500842,0.00021917,2]
[348488057,1736573435430,-833.442232,0.00021917,2]
[348488058,1736573435441,-833.442232,0.00021917,2]
[348488059,1736573435451,-833.44223,0.00021917,2]
[348488060,1736573435461,-500.0,0.00021917,3]
[348488061,1736573435471,-500.0,0.00021917,3]
[348488062,1736573435481,-500.0,0.00021917,3]
[348488063,1736573435491,-500.0,0.00021917,3]
[348488064,1736573435500,-500.0,0.00021917,3]
[348488065,1736573435509,-500.0,0.00021917,3]
[348488066,1736573435519,-500.0,0.00021917,3]
[348488067,1736573435528,-500.0,0.00021917,3]
[348488068,1736573435539,-504.07609066,0.00021917,3]
[348488069,1736573435549,-500.0,0.00021917,3]
[348488070,1736573435558,-500.0,0.00021917,3]
[348488071,1736573435569,-500.0,0.00021917,3]
[348488072,1736573435578,-500.0,0.00021917,3]
[348488073,1736573435588,-516.51896577,0.00021917,3]
[348488074,1736573435597,-500.0,0.00021917,3]
[348488075,1736573435606,-310.81613633,0.00021917,3]
[348488076,1736573435616,-501.30235415,0.00021917,3]
[348488077,1736573435625,-502.345016,0.00021917,3]
[348488078,1736573435635,-500.0,0.00021917,3]
[348488079,1736573435644,-502.47798822,0.00021917,3]
[348488080,1736573435653,-500.87012008,0.00021917,3]
[348488081,1736573435663,-501.46204674,0.00021917,3]
[348488082,1736573435673,-500.0,0.00021917,3]
[348488083,1736573435684,-500.98163604,0.00021917,3]
[348488084,1736573435694,-501.44338919,0.00021917,3]
[348488085,1736573435703,-501.58743357,0.00021917,3]
[348488086,1736573435712,-500.0,0.00021917,3]
[348488087,1736573435722,-501.69241219,0.00021917,3]
[348488088,1736573435731,-500.0,0.00021917,3]
[348488089,1736573435742,-504.58159755,0.00021917,3]
[348488090,1736573435751,-500.0,0.00021917,3]
[348488091,1736573435760,-503.03861912,0.00021917,3]
[348488092,1736573435769,-151.0,0.00021917,2]
[348488093,1736573435779,-151.0,0.00021917,2]
[348488094,1736573435789,-151.0,0.00021917,2]
[348488095,1736573435799,-151.0,0.00021917,2]
[348488096,1736573435808,-151.0,0.00021917,2]
[348488097,1736573435818,-151.0,0.00021917,2]
[348488098,1736573435828,-151.0,0.00021917,2]
[348488099,1736573435838,-151.0,0.00021917,2]
[348488100,1736573435847,-151.0,0.00021917,2]
[348488101,1736573435859,-153.478594,0.00021917,2]
[348488102,1736573435869,-501.16876906,0.00021917,3]
[348488103,1736573435879,-503.82328575,0.00021917,3]
[348488104,1736573435889,-500.0,0.00021917,3]
[348488105,1736573435899,-500.0,0.00021917,3]
[348488106,1736573435909,-511.55156667,0.00021917,3]
[348488107,1736573435920,-500.34003361,0.00021917,3]
[348488108,1736573435931,-500.0,0.00021917,3]
[348488109,1736573435940,-151.0,0.00021917,2]
[348488110,1736573435951,-151.0,0.00021917,2]
[348488111,1736573435960,-151.0,0.00021917,2]
[348488112,1736573435970,-500.79542543,0.00021917,3]
[348488113,1736573435979,-151.0,0.00021917,2]
[348488114,1736573435989,-151.0,0.00021917,2]
[348488115,1736573435999,-500.0,0.00021917,3]
[348488116,1736573436009,-151.0,0.00021917,2]
[348488117,1736573436018,-1183.41,0.00021917,3]
[348488118,1736573436028,-500.57991702,0.00021917,3]
[348488119,1736573436037,-500.0,0.00021917,3]
[348488120,1736573436047,-415.8385351,0.00021917,3]
[348488121,1736573436058,-500.0,0.00021917,3]
[348488122,1736573436068,-500.0,0.00021917,3]
[348488123,1736573436078,-500.0,0.00021917,3]
[348488124,1736573436087,-500.0,0.00021917,3]
[348488125,1736573436100,-220.92873437,0.00021917,3]
[348488126,1736573436109,-506.13830295,0.00021917,3]
[348488127,1736573436119,-501.44666086,0.00021917,3]
[348488128,1736573436129,-502.3626727,0.00021917,3]
[348488129,1736573436138,-151.0,0.00021917,2]
[348488130,1736573436148,-151.0,0.00021917,2]
[348488131,1736573436157,-151.0,0.00021917,2]
[348488132,1736573436167,-500.0,0.00021917,3]
[348488133,1736573436176,-502.09446477,0.00021917,3]
[348488134,1736573436187,-192.776931,0.00021917,2]
[348488135,1736573436197,-151.0,0.00021917,2]
[348488136,1736573436207,-151.0,0.00021917,2]
[348488137,1736573436216,-500.0,0.00021917,3]
[348488138,1736573436226,-151.0,0.00021917,2]
[348488139,1736573436235,-151.0,0.00021917,2]
[348488140,1736573436245,-500.0,0.00021917,3]
[348488141,1736573436254,-151.0,0.00021917,2]
[348488142,1736573436264,-151.0,0.00021917,2]
[348488143,1736573436274,-500.0,0.00021917,3]
[348488144,1736573436283,-151.0,0.00021917,2]
[348488145,1736573436293,-151.0,0.00021917,2]
[348488146,1736573436303,-301.975553,0.00021917,2]
[348488147,1736573436312,-500.0,0.00021917,3]
[348488148,1736573436321,-503.1886293,0.00021917,3]
[348488149,1736573436332,-500.0,0.00021917,3]
[348488150,1736573436342,-500.89999666,0.00021917,3]
[348488151,1736573436352,-500.0,0.00021917,3]
[348488152,1736573436361,-500.0,0.00021917,3]
[348488153,1736573436371,-500.0,0.00021917,3]
[348488154,1736573436381,-502.54608752,0.00021917,3]
[348488155,1736573436391,-500.0,0.00021917,3]
[348488156,1736573436401,-500.0,0.00021917,3]
[348488157,1736573436411,-500.0,0.00021917,3]
[348488158,1736573436421,-500.0,0.00021917,3]
[348488159,1736573436431,-502.24588475,0.00021917,3]
[348488160,1736573436440,-500.0,0.00021917,3]
[348488161,1736573436450,-500.0,0.00021917,3]
[348488162,1736573436460,-500.0,0.00021917,3]
[348488163,1736573436470,-470.51373741,0.00021917,3]
[348488164,1736573436479,-500.0,0.00021917,3]
[348488165,1736573436489,-500.0,0.00021917,3]
[348488166,1736573436499,-500.0,0.00021917,3]
[348488167,1736573436509,-500.0,0.00021917,3]
[348488168,1736573436518,-500.0,0.00021917,3]
[348488169,1736573436528,-500.0,0.00021917,3]
[348488170,1736573436537,-500.0,0.00021917,3]
[348488171,1736573436546,-500.0,0.00021917,3]
[348488172,1736573436556,-151.0,0.00021917,2]
[348488173,1736573436565,-151.0,0.00021917,2]
[348488174,1736573436576,-508.14245107,0.00021917,3]
[348488175,1736573436585,-151.0,0.00021917,2]
[348488176,1736573436595,-151.0,0.00021917,2]
[348488177,1736573436604,-500.0,0.00021917,3]
[348488178,1736573436614,-151.0,0.00021917,2]
[348488179,1736573436623,-500.0,0.00021917,3]
[348488180,1736573436633,-151.0,0.00021917,2]
[348488181,1736573436642,-500.0,0.00021917,3]
[348488182,1736573436652,-151.0,0.00021917,2]
[348488183,1736573436661,-151.0,0.00021917,2]
[348488184,1736573436670,-151.0,0.00021917,2]
[348488185,1736573436680,-151.0,0.00021917,2]
[348488186,1736573436689,-151.0,0.00021917,2]
[348488187,1736573436699,-500.0,0.00021917,3]
[348488188,1736573436708,-151.0,0.00021917,2]
[348488189,1736573436718,-509.83703833,0.00021917,3]
[348488190,1736573436728,-151.0,0.00021917,2]
[348488191,1736573436738,-154.315798,0.00021917,2]
[348488192,1736573436748,-500.0,0.00021917,3]
[348488193,1736573436757,-500.0,0.00021917,3]
[348488194,1736573436767,-500.0,0.00021917,3]
[348488195,1736573436776,-502.77420627,0.00021917,3]
[348488196,1736573436787,-500.0,0.00021917,3]
[348488197,1736573436797,-500.0,0.00021917,3]
[348488198,1736573436808,-545.03317515,0.00021917,3]
[348488199,1736573436818,-507.34313531,0.00021917,3]
[348488200,1736573436828,-245.171829,0.00021917,3]
[348488201,1736573436841,-500.0,0.00021917,3]
[348488202,1736573436850,-505.29284544,0.00021917,3]
[348488203,1736573436859,-500.0,0.00021917,3]
[348488204,1736573436868,-220.71111797,0.00021917,3]
[348488205,1736573436878,-511.71927572,0.00021917,3]
[348488206,1736573436887,-500.0,0.00021917,3]
[348488207,1736573436896,-500.0,0.00021917,3]
[348488208,1736573436906,-500.0,0.00021917,3]
[348488209,1736573436915,-501.69645912,0.00021917,3]
[348488210,1736573436925,-500.0,0.00021917,3]
[348488211,1736573436934,-500.0,0.00021917,3]
[348488212,1736573436943,-501.94727389,0.00021917,3]
[348488213,1736573436953,-500.51613433,0.00021917,3]
[348488214,1736573436963,-457.32156979,0.00021917,3]
[348488215,1736573436973,-503.07412865,0.00021917,3]
[348488216,1736573436983,-500.0,0.00021917,3]
[348488217,1736573436993,-500.0,0.00021917,3]
[348488218,1736573437003,-1188.578399,0.00021917,2]
[348488219,1736573437013,-500.0,0.00021917,3]
[348488220,1736573437023,-502.15309784,0.00021917,3]
[348488221,1736573437032,-1188.578399,0.00021917,2]
[348488222,1736573437043,-500.0,0.00021917,3]
[348488223,1736573437053,-1188.578399,0.00021917,2]
[348488224,1736573437063,-1188.578399,0.00021917,2]
[348488225,1736573437072,-1188.578399,0.00021917,2]
[348488226,1736573437081,-500.0,0.00021917,3]
[348488227,1736573437090,-1188.578399,0.00021917,2]
[348488228,1736573437103,-503.83651842,0.00021917,3]
[348488229,1736573437112,-378.189523,0.00021917,2]
[348488230,1736573437121,-378.189523,0.00021917,2]
[348488231,1736573437130,-500.0,0.00021917,3]
[348488232,1736573437140,-378.189523,0.00021917,2]
[348488233,1736573437149,-378.189523,0.00021917,2]
[348488234,1736573437159,-500.0,0.00021917,3]
[348488235,1736573437168,-378.189523,0.00021917,2]
[348488236,1736573437178,-378.189523,0.00021917,2]
[348488237,1736573437187,-378.189523,0.00021917,2]
[348488238,1736573437196,-378.189523,0.00021917,2]
[348488239,1736573437205,-503.34834738,0.00021917,3]
[348488240,1736573437215,-378.189523,0.00021917,2]
[348488241,1736573437225,-378.189523,0.00021917,2]
[348488242,1736573437235,-378.189523,0.00021917,2]
[348488243,1736573437245,-504.71903422,0.00021917,3]
[348488244,1736573437255,-378.189523,0.00021917,2]
[348488245,1736573437265,-378.189523,0.00021917,2]
[348488246,1736573437274,-378.189523,0.00021917,2]
[348488247,1736573437283,-500.8267458,0.00021917,3]
[348488248,1736573437292,-378.189523,0.00021917,2]
[348488249,1736573437301,-171.981235,0.00021917,2]
[348488250,1736573437311,-378.189523,0.00021917,2]
[348488251,1736573437321,-378.189523,0.00021917,2]
[348488252,1736573437331,-378.189523,0.00021917,2]
[348488253,1736573437342,-378.189523,0.00021917,2]
[348488254,1736573437352,-389.3999373,0.00021917,3]
[348488255,1736573437362,-500.0,0.00021917,3]
[348488256,1736573437371,-378.189531,0.00021917,2]
[348488257,1736573437380,-508.62789684,0.00021917,3]
[348488258,1736573437391,-500.0,0.00021917,3]
[348488259,1736573437402,-500.0,0.00021917,3]
[348488260,1736573437413,-503.44177267,0.00021917,3]
[348488261,1736573437423,-503.28983553,0.00021917,3]
[348488262,1736573437432,-500.0,0.00021917,3]
[348488263,1736573437442,-500.0,0.00021917,3]
[348488264,1736573437452,-500.0,0.00021917,3]
[348488265,1736573437461,-500.0,0.00021917,3]
[348488266,1736573437471,-500.0,0.00021917,3]
[348488267,1736573437480,-500.0,0.00021917,3]
[348488268,1736573437490,-507.73070451,0.00021917,3]
[348488269,1736573437499,-507.72683286,0.00021917,3]
[348488270,1736573437508,-500.0,0.00021917,3]
[348488271,1736573437518,-504.31260052,0.00021917,3]
[348488273,1736573437527,-500.0,0.00021917,3]
[348488274,1736573437537,-500.0,0.00021917,3]
[348488275,1736573437546,-500.0,0.00021917,3]
[348488276,1736573437556,-500.0,0.00021917,2]
[348488277,1736573437566,-500.0,0.00021917,3]
[348488278,1736573437576,-500.0,0.00021917,3]
[348488279,1736573437585,-500.0,0.00021917,3]
[348488280,1736573437594,-500.0,0.00021917,3]
[348488281,1736573437603,-503.523258,0.00021917,3]
[348488282,1736573437614,-501.13434528,0.00021917,3]
[348488283,1736573437622,-500.0,0.00021917,3]
[348488284,1736573437632,-500.0,0.00021917,3]
[348488286,1736573437641,-501.08698242,0.00021917,3]
[348488288,1736573437651,-504.51589218,0.00021917,3]
[348488289,1736573437661,-500.0,0.00021917,3]
[348488290,1736573437672,-151.328732,0.00021917,2]
[348488291,1736573437681,-500.0,0.00021917,3]
[348488292,1736573437690,-500.0,0.00021917,3]
[348488293,1736573437699,-442.76077051,0.00021917,3]
[348488294,1736573437709,-503.8369869,0.00021917,3]
[348488295,1736573437719,-501.84825704,0.00021917,3]
[348488296,1736573437728,-500.0,0.00021917,3]
[348488297,1736573437738,-500.0,0.00021917,3]
[348488298,1736573437747,-500.0,0.00021917,3]
[348488300,1736573437757,-500.0,0.00021917,3]
[348488301,1736573437767,-500.0,0.00021917,3]
[348488302,1736573437776,-500.0,0.00021917,3]
[348488303,1736573437785,-500.0,0.00021917,3]
[348488304,1736573437795,-500.0,0.00021917,3]
[348488305,1736573437804,-500.0,0.00021917,3]
[348488306,1736573437813,-500.0,0.00021917,3]
[348488307,1736573437823,-500.0,0.00021917,3]
[348488308,1736573437833,-529.13303381,0.00021917,3]
[348488309,1736573437939,-500.0,0.00021917,3]
[348488310,1736573437950,-500.0,0.00021917,3]
[348488311,1736573437959,-503.59934658,0.00021917,3]
[348488312,1736573437968,-500.0,0.00021917,3]
[348488313,1736573437978,-501.08943933,0.00021917,3]
[348488314,1736573437987,-500.0,0.00021917,3]
[348488315,1736573437998,-500.0,0.00021917,3]
[348488316,1736573438007,-500.0,0.00021917,3]
[348488317,1736573438017,-500.0,0.00021917,3]
[348488318,1736573438027,-505.60530238,0.00021917,3]
[348488319,1736573438037,-420.78780233,0.00021917,3]
[348488320,1736573438046,-527.43674229,0.00021917,3]
[348488321,1736573438056,-500.0,0.00021917,3]
[348488322,1736573438066,-500.0,0.00021917,3]
[348488323,1736573438076,-500.0,0.00021917,3]
[348488325,1736573438085,-670.908154,0.00021917,2]
[348488327,1736573438095,-670.908154,0.00021917,2]
[348488329,1736573438105,-500.0,0.00021917,3]
[348488331,1736573438116,-670.908154,0.00021917,2]
[348488333,1736573438125,-670.908154,0.00021917,2]
[348488335,1736573438134,-670.908154,0.00021917,2]
[348488336,1736573438145,-670.908154,0.00021917,2]
[348488338,1736573438155,-670.908154,0.00021917,2]
[348488340,1736573438164,-500.0,0.00021917,3]
[348488342,1736573438174,-670.908154,0.00021917,2]
[348488345,1736573438183,-670.908154,0.00021917,2]
[348488346,1736573438193,-670.908154,0.00021917,2]
[348488349,1736573438203,-670.908154,0.00021917,2]
[348488350,1736573438214,-670.908154,0.00021917,2]
[348488352,1736573438223,-670.908154,0.00021917,2]
[348488354,1736573438233,-90.01509221,0.00021917,2]
[348488371,1736573438396,-580.89306179,0.00021917,2]
[348488373,1736573438406,-670.908154,0.00021917,2]
[348488375,1736573438415,-670.908154,0.00021917,2]
[348488377,1736573438425,-500.0,0.00021917,3]
[348488379,1736573438434,-500.0,0.00021917,3]
[348488381,1736573438444,-670.908154,0.00021917,2]
[348488383,1736573438453,-670.908154,0.00021917,2]
[348488384,1736573438462,-500.0,0.00021917,3]
[348488386,1736573438472,-670.908154,0.00021917,2]
[348488388,1736573438481,-670.908151,0.00021917,2]
[348488389,1736573438492,-502.17520493,0.00021917,3]
[348488391,1736573438501,-622.924456,0.00021917,2]
[348488393,1736573438510,-500.0,0.00021917,3]
[348488395,1736573438520,-622.924456,0.00021917,2]
[348488397,1736573438530,-622.924456,0.00021917,2]
[348488399,1736573438539,-622.924456,0.00021917,2]
[348488401,1736573438549,-502.14729548,0.00021917,3]
[348488403,1736573438558,-500.0,0.00021917,3]
[348488405,1736573438568,-622.924456,0.00021917,2]
[348488407,1736573438578,-622.924456,0.00021917,2]
[348488409,1736573438588,-622.924456,0.00021917,2]
[348488411,1736573438597,-622.924456,0.00021917,2]